fUST/lending_fUST_20250701
["ID","MTS","AMOUNT","RATE_DAILY","PERIOD"]
[368763036,1751351447559,-561.2896447,0.00018594,2]
[368763038,1751351447568,-460.0,0.00018594,2]
[368763040,1751351447578,-460.0,0.00018594,2]
[368763042,1751351447586,-460.0,0.00018594,2]
[368763044,1751351447596,-460.0,0.00018594,2]
[368763046,1751351447606,-732.75,0.00018594,2]
[368763048,1751351447615,-460.0,0.00018594,2]
[368763050,1751351447624,-460.0,0.00018594,2]
[368763052,1751351447634,-460.0,0.00018594,2]
[368763054,1751351447644,-460.0,0.00018594,2]
[368763056,1751351447653,-620.61,0.00018594,2]
[368763058,1751351447662,-244.22232057,0.00018594,2]
[368763060,1751351447671,-460.0,0.00018594,2]
[368763062,1751351447680,-460.0,0.00018594,2]
[368763064,1751351447690,-1219.14,0.00018594,2]
[368763066,1751351447699,-460.0,0.00018594,2]
[368763068,1751351447708,-460.0,0.00018594,2]
[368763070,1751351447718,-460.0,0.00018594,2]
[368763072,1751351447727,-585.76,0.00018594,2]
[368763074,1751351447736,-460.0,0.00018594,2]
[368763076,1751351447747,-460.0,0.00018595,2]
[368763078,1751351447756,-460.0,0.00018595,2]
[368763080,1751351447765,-1300.61,0.00018595,2]
[368763082,1751351447775,-460.0,0.00018596,2]
[368763085,1751351447792,-460.0,0.00018596,2]
[368763087,1751351447803,-460.0,0.00018596,2]
[368763089,1751351447813,-460.0,0.00018596,2]
[368763091,1751351447823,-460.0,0.00018596,2]
[368763093,1751351447832,-460.0,0.00018596,2]
[368763096,1751351447843,-460.0,0.00018596,2]
[368763098,1751351447852,-460.0,0.00018596,2]
[368763100,1751351447862,-460.0,0.00018596,2]
[368763102,1751351447871,-460.0,0.00018596,2]
[368763104,1751351447881,-460.0,0.00018596,2]
[368763106,1751351447890,-460.0,0.00018596,2]
[368763108,1751351447900,-270.27266673,0.00018596,2]
[368763110,1751351447910,-469.01946657,0.00018596,2]
[368763112,1751351447920,-460.0,0.00018596,2]
[368763114,1751351447930,-460.0,0.00018596,2]
[368763116,1751351447940,-524.59,0.00018596,2]
[368763118,1751351447949,-460.0,0.00018596,2]
[368763120,1751351447959,-460.0,0.00018596,2]
[368763122,1751351447968,-438.29862174,0.00018596,2]
[368763124,1751351447978,-460.0,0.00018596,2]
[368763126,1751351447987,-460.78943362,0.00018596,2]
[368763128,1751351447997,-460.0,0.00018596,2]
[368763130,1751351448007,-460.0,0.00018596,2]
[368763132,1751351448016,-460.0,0.00018596,2]
[368763134,1751351448026,-460.0,0.00018596,2]
[368763136,1751351448037,-460.0,0.00018596,2]
[368763138,1751351448047,-460.0,0.00018596,2]
[368763140,1751351448058,-460.0,0.00018596,2]
[368763142,1751351448067,-460.0,0.00018596,2]
[368763144,1751351448077,-460.0,0.00018596,2]
[368763146,1751351448087,-460.0,0.00018596,2]
[368763148,1751351448096,-460.0,0.00018596,2]
[368763150,1751351448105,-364.938275,0.00018596,2]
[368763152,1751351448117,-460.0,0.00018596,2]
[368763154,1751351448126,-460.0,0.00018596,2]
[368763156,1751351448136,-460.0,0.00018597,2]
[368763158,1751351448146,-465.45567467,0.00018598,2]
[368763160,1751351448156,-500.0,0.00018631,2]
[368763162,1751351448166,-304.0350781,0.00018631,2]
[368763164,1751351448176,-157.49944196,0.00018821,2]
[368763166,1751351448186,-493.97,0.00018865,2]
[368763168,1751351448195,-460.0,0.00018866,2]
[368763170,1751351448206,-1344.77,0.00018866,2]
[368763172,1751351448215,-986.27,0.00018866,2]
[368763174,1751351448226,-460.0,0.00018866,2]
[368763176,1751351448236,-319.81,0.00018866,2]
[368763178,1751351448246,-660.44,0.00018866,2]
[368763181,1751351448256,-460.0,0.00018866,2]
[368763183,1751351448265,-827.49,0.00018866,2]
[368763185,1751351448274,-783.63,0.00018866,2]
[368763186,1751351448283,-462.66,0.00018866,2]
[368763189,1751351448294,-538.36,0.00018866,2]
[368763190,1751351448303,-460.0,0.00018866,2]
[368763193,1751351448313,-460.0,0.00018866,2]
[368763194,1751351448322,-720.98,0.00018866,2]
[368763197,1751351448331,-460.0,0.00018866,2]
[368763199,1751351448343,-460.0,0.00018867,2]
[368763201,1751351448352,-460.0,0.00018867,2]
[368763203,1751351448362,-460.0,0.00018867,2]
[368763205,1751351448371,-460.0,0.00018867,2]
[368763207,1751351448381,-460.0,0.00018867,2]
[368763209,1751351448391,-460.0,0.00018867,2]
[368763211,1751351448400,-460.0,0.00018867,2]
[368763213,1751351448410,-473.22,0.00018867,2]
[368763215,1751351448419,-852.87,0.00018867,2]
[368763217,1751351448429,-513.11146444,0.00018867,2]
[368763219,1751351448439,-1300.61,0.00018867,2]
[368763221,1751351448449,-460.0,0.00018867,2]
[368763223,1751351448458,-258.48,0.00018867,2]
[368763225,1751351448468,-460.0,0.00018867,2]
[368763227,1751351448478,-460.0,0.00018867,2]
[368763229,1751351448487,-460.0,0.00018867,2]
[368763242,1751351448602,-460.0,0.00018867,2]
[368763244,1751351448613,-460.0,0.00018867,2]
[368763246,1751351448622,-460.0,0.00018867,2]
[368763248,1751351448631,-460.0,0.00018867,2]
[368763250,1751351448640,-460.0,0.00018867,2]
[368763252,1751351448650,-1607.04,0.00018867,2]
[368763254,1751351448659,-460.0,0.00018867,2]
[368763256,1751351448668,-460.0,0.00018867,2]
[368763258,1751351448678,-460.0,0.00018867,2]
[368763260,1751351448687,-460.0,0.00018867,2]
[368763262,1751351448698,-460.0,0.00018867,2]
[368763264,1751351448708,-460.0,0.00018867,2]
[368763266,1751351448717,-460.0,0.00018867,2]
[368763268,1751351448726,-460.0,0.00018867,2]
[368763270,1751351448735,-509.32,0.00018867,2]
[368763272,1751351448744,-460.0,0.00018867,2]
[368763274,1751351448754,-460.0,0.00018867,2]
[368763276,1751351448763,-460.0,0.00018867,2]
[368763278,1751351448773,-460.0,0.00018867,2]
[368763280,1751351448782,-460.0,0.00018867,2]
[368763282,1751351448791,-199.28,0.00018867,2]
[368763284,1751351448800,-514.42,0.00018867,2]
[368763286,1751351448809,-1151.81,0.00018867,2]
[368763288,1751351448819,-460.0,0.00018868,2]
[368763290,1751351448829,-460.0,0.00018868,2]
[368763292,1751351448838,-460.0,0.00018868,2]
[368763294,1751351448847,-460.0,0.00018868,2]
[368763296,1751351448856,-498.32,0.00018868,2]
[368763298,1751351448866,-460.0,0.00018868,2]
[368763300,1751351448875,-460.0,0.00018868,2]
[368763302,1751351448885,-460.0,0.00018868,2]
[368763304,1751351448895,-460.0,0.00018868,2]
[368763306,1751351448906,-460.0,0.00018868,2]
[368763308,1751351448915,-718.25,0.00018868,2]
[368763310,1751351448925,-460.0,0.00018868,2]
[368763312,1751351448934,-460.0,0.00018868,2]
[368763314,1751351448943,-460.0,0.00018868,2]
[368763316,1751351448953,-532.45462918,0.00018868,2]
[368763318,1751351448964,-460.0,0.00018868,2]
[368763320,1751351448973,-481.62,0.00018868,2]
[368763322,1751351448982,-732.75,0.00018868,2]
[368763324,1751351448992,-526.63,0.00018868,2]
[368763326,1751351449001,-460.0,0.00018868,2]
[368763328,1751351449010,-620.61,0.00018868,2]
[368763330,1751351449020,-460.0,0.00018868,2]
[368763332,1751351449029,-460.0,0.00018868,2]
[368763334,1751351449043,-1219.14,0.00018868,2]
[368763336,1751351449053,-460.0,0.00018868,2]
[368763338,1751351449062,-460.0,0.00018868,2]
[368763340,1751351449072,-460.0,0.00018868,2]
[368763342,1751351449083,-585.76,0.00018868,2]
[368763344,1751351449092,-460.0,0.00018868,2]
[368763346,1751351449102,-460.0,0.00018869,2]
[368763348,1751351449112,-460.0,0.00018869,2]
[368763350,1751351449123,-479.98,0.0001887,2]
[368763353,1751351449134,-460.0,0.0001887,2]
[368763355,1751351449143,-460.0,0.0001887,2]
[368763356,1751351449152,-460.0,0.0001887,2]
[368763358,1751351449161,-460.0,0.0001887,2]
[368763361,1751351449171,-460.0,0.0001887,2]
[368763363,1751351449180,-460.0,0.0001887,2]
[368763365,1751351449189,-460.0,0.0001887,2]
[368763367,1751351449199,-460.0,0.0001887,2]
[368763368,1751351449209,-460.0,0.0001887,2]
[368763371,1751351449218,-460.0,0.0001887,2]
[368763373,1751351449228,-460.0,0.0001887,2]
[368763374,1751351449237,-460.0,0.0001887,2]
[368763376,1751351449246,-460.0,0.0001887,2]
[368763378,1751351449255,-477.72,0.00018871,2]
[368763380,1751351449265,-1000.0,0.00018921,2]
[368763382,1751351449274,-1300.61,0.00018926,2]
[368763384,1751351449283,-847.53272281,0.00018926,2]
[368763386,1751351449292,-160.0,0.00018926,2]
[368763389,1751351449303,-837.20943635,0.00018926,2]
[368763390,1751351449313,-160.0,0.00018926,2]
[368763392,1751351449322,-160.0,0.00018926,2]
[368763394,1751351449331,-160.0,0.00018926,2]
[368763397,1751351449341,-160.0,0.00018926,2]
[368763399,1751351449351,-160.0,0.00018926,2]
[368763401,1751351449360,-215.01728679,0.00018926,2]
[368763403,1751351449370,-12571.40790328,0.00018926,2]
[368763405,1751351449379,-230.32585361,0.00018926,2]
[368763407,1751351449389,-213.87551669,0.00018926,2]
[368763409,1751351449398,-158.97564435,0.00018971,2]
[368763411,1751351449407,-160.0,0.0001902,2]
[368763412,1751351449416,-493.97,0.00019139,2]
[368763414,1751351449426,-460.0,0.0001914,2]
[368763416,1751351449436,-1344.77,0.0001914,2]
[368763418,1751351449445,-986.27,0.0001914,2]
[368763420,1751351449455,-460.0,0.0001914,2]
[368763422,1751351449464,-660.44,0.0001914,2]
[368763425,1751351449473,-460.0,0.0001914,2]
[368763427,1751351449482,-827.49,0.0001914,2]
[368763428,1751351449492,-783.63,0.0001914,2]
[368763430,1751351449501,-538.36,0.0001914,2]
[368763433,1751351449510,-460.0,0.0001914,2]
[368763434,1751351449520,-460.0,0.0001914,2]
[368763436,1751351449529,-720.98,0.0001914,2]
[368763439,1751351449538,-460.0,0.0001914,2]
[368763441,1751351449547,-460.0,0.00019141,2]
[368763443,1751351449557,-460.0,0.00019141,2]
[368763445,1751351449566,-460.0,0.00019141,2]
[368763447,1751351449576,-319.05,0.00019141,2]
[368763449,1751351449586,-460.0,0.00019141,2]
[368763451,1751351449595,-386.01,0.00019141,2]
[368763452,1751351449605,-460.0,0.00019141,2]
[368763454,1751351449614,-460.0,0.00019141,2]
[368763456,1751351449624,-852.87,0.00019141,2]
[368763458,1751351449633,-1300.61,0.00019141,2]
[368763461,1751351449644,-570.81,0.00019141,2]
[368763463,1751351449654,-460.0,0.00019141,2]
[368763465,1751351449664,-460.0,0.00019141,2]
[368763467,1751351449673,-460.0,0.00019141,2]
[368763469,1751351449683,-491.51,0.00019141,2]
[368763470,1751351449692,-460.0,0.00019141,2]
[368763471,1751351449702,-566.66,0.00019141,2]
[368763472,1751351449711,-460.0,0.00019141,2]
[368763474,1751351449720,-1607.04,0.00019141,2]
[368763476,1751351449729,-409.71,0.00019141,2]
[368763477,1751351449738,-172.34,0.00019141,2]
[368763478,1751351449747,-164.62,0.00019141,2]
[368763479,1751351449757,-460.0,0.00019141,2]
[368763480,1751351449767,-464.12,0.00019141,2]
[368763481,1751351449776,-460.0,0.00019141,2]
[368763483,1751351449786,-509.32,0.00019141,2]
[368763485,1751351449796,-460.0,0.00019141,2]
[368763487,1751351449806,-460.0,0.00019141,2]
[368763489,1751351449816,-544.13,0.00019141,2]
[368763491,1751351449825,-1151.81,0.00019141,2]
[368763493,1751351449834,-460.0,0.00019142,2]
[368763495,1751351449843,-460.0,0.00019142,2]
[368763497,1751351449852,-457.55,0.00019142,2]
[368763499,1751351449862,-166.08,0.00019142,2]
[368763501,1751351449871,-166.41,0.00019142,2]
[368763503,1751351449880,-718.25,0.00019142,2]
[368763505,1751351449890,-460.0,0.00019142,2]
[368763507,1751351449899,-580.09,0.00019142,2]
[368763509,1751351449908,-460.0,0.00019142,2]
[368763511,1751351449917,-732.75,0.00019142,2]
[368763513,1751351449927,-460.0,0.00019142,2]
[368763515,1751351449936,-620.61,0.00019142,2]
[368763517,1751351449945,-460.0,0.00019142,2]
[368763519,1751351449954,-460.0,0.00019142,2]
[368763521,1751351449964,-1219.14,0.00019142,2]
[368763523,1751351449973,-460.0,0.00019142,2]
[368763525,1751351449983,-460.0,0.00019142,2]
[368763527,1751351449992,-460.0,0.00019142,2]
[368763529,1751351450001,-585.76,0.00019142,2]
[368763531,1751351450011,-460.0,0.00019142,2]
[368763533,1751351450020,-460.0,0.00019143,2]
[368763535,1751351450029,-452.23381153,0.00019144,2]
[368763537,1751351450041,-460.0,0.00019144,2]
[368763539,1751351450050,-460.0,0.00019144,2]
[368763541,1751351450059,-460.0,0.00019144,2]
[368763543,1751351450070,-460.0,0.00019144,2]
[368763545,1751351450080,-460.0,0.00019144,2]
[368763547,1751351450091,-460.0,0.00019144,2]
[368763549,1751351450100,-397.198095,0.00019178,2]
[368763551,1751351450110,-500.0,0.0001929,2]
[368763553,1751351450119,-690.642,0.0001929,2]
[368763555,1751351450128,-500.0,0.0001929,2]
[368763556,1751351450137,-500.0,0.0001929,2]
[368763557,1751351450147,-500.0,0.0001929,2]
[368763558,1751351450156,-500.0,0.0001929,2]
[368763559,1751351450166,-500.0,0.0001929,2]
[368763560,1751351450176,-251.46506806,0.0001929,2]
[368763561,1751351450185,-207.4,0.0001929,2]
[368763562,1751351450194,-34296.02289808,0.00019329,2]
[368763563,1751351450205,-264.18076874,0.00019336,2]
[368763564,1751351450215,-716.195754,0.00019345,2]
[368763565,1751351450224,-824.22493012,0.000194,2]
[368763566,1751351450308,-1317.92,0.00019406,3]
[368763567,1751351450318,-658.96,0.00019406,3]
[368763568,1751351450328,-329.48,0.00019406,3]
[368763569,1751351450337,-493.97,0.00019413,2]
[368763570,1751351450347,-460.0,0.00019414,2]
[368763571,1751351450356,-1344.77,0.00019414,2]
[368763572,1751351450365,-986.27,0.00019414,2]
[368763573,1751351450374,-460.0,0.00019414,2]
[368763574,1751351450384,-1300.61,0.00019414,2]
[368763575,1751351450393,-660.44,0.00019414,2]
[368763576,1751351450403,-460.0,0.00019414,2]
[368763577,1751351450412,-827.49,0.00019414,2]
[368763578,1751351450421,-783.63,0.00019414,2]
[368763579,1751351450430,-538.36,0.00019414,2]
[368763580,1751351450439,-460.0,0.00019414,2]
[368763581,1751351450448,-460.0,0.00019414,2]
[368763582,1751351450456,-720.98,0.00019414,2]
[368763583,1751351450466,-460.0,0.00019414,2]
[368763584,1751351450475,-460.0,0.00019415,2]
[368763585,1751351450484,-460.0,0.00019415,2]
[368763586,1751351450494,-460.0,0.00019415,2]
[368763587,1751351450504,-460.0,0.00019415,2]
[368763588,1751351450514,-852.87,0.00019415,2]
[368763589,1751351450523,-460.0,0.00019415,2]
[368763590,1751351450533,-460.0,0.00019415,2]
[368763591,1751351450542,-460.0,0.00019415,2]
[368763592,1751351450551,-289.69,0.00019415,2]
[368763593,1751351450559,-1607.04,0.00019415,2]
[368763594,1751351450569,-460.0,0.00019415,2]
[368763595,1751351450578,-509.32,0.00019415,2]
[368763596,1751351450587,-460.0,0.00019415,2]
[368763597,1751351450600,-460.0,0.00019415,2]
[368763598,1751351450610,-1151.81,0.00019415,2]
[368763599,1751351450619,-536.33576114,0.00019416,2]
[368763600,1751351450629,-718.25,0.00019416,2]
[368763601,1751351450638,-460.0,0.00019416,2]
[368763602,1751351450647,-460.0,0.00019416,2]
[368763603,1751351450656,-732.75,0.00019416,2]
[368763604,1751351450666,-460.0,0.00019416,2]
[368763605,1751351450675,-620.61,0.00019416,2]
[368763606,1751351450684,-265.06,0.00019416,2]
[368763607,1751351450693,-1219.14,0.00019416,2]
[368763608,1751351450704,-460.0,0.00019416,2]
[368763609,1751351450713,-460.0,0.00019416,2]
[368763610,1751351450723,-585.76,0.00019416,2]
[368763611,1751351450732,-551.98073413,0.00019418,2]
[368763612,1751351450741,-460.0,0.00019418,2]
[368763613,1751351450750,-460.0,0.00019418,2]
[368763614,1751351450759,-487.35,0.00019418,2]
[368763615,1751351450769,-460.0,0.00019418,2]
[368763616,1751351450779,-1500.0,0.00019468,2]
[368763617,1751351450788,-500.0,0.00019534,2]
[368763618,1751351450798,-151.0,0.00019534,2]
[368763619,1751351450807,-151.0,0.00019534,2]
[368763620,1751351450818,-151.45632971,0.00019534,2]
[368763621,1751351450827,-151.0,0.00019534,2]
[368763622,1751351450837,-151.46057748,0.00019534,2]
[368763623,1751351450846,-151.0,0.00019534,2]
[368763624,1751351450856,-202.39966653,0.00019534,2]
[368763625,1751351450866,-152.2127232,0.00019534,2]
[368763626,1751351450876,-151.65186857,0.00019534,2]
[368763627,1751351450885,-151.23920088,0.00019534,2]
[368763628,1751351450894,-151.0,0.00019534,2]
[368763629,1751351450903,-151.0,0.00019534,2]
[368763630,1751351450912,-500.0,0.00019534,2]
[368763631,1751351450922,-151.0,0.00019534,2]
[368763632,1751351450932,-151.0,0.00019534,2]
[368763633,1751351450941,-151.0,0.00019534,2]
[368763634,1751351450952,-151.0,0.00019534,2]
[368763635,1751351450961,-500.0,0.00019561,2]
[368763636,1751351450970,-292.8455064,0.00019561,2]
[368763637,1751351450979,-500.0,0.00019561,2]
[368763638,1751351450989,-151.0,0.00019561,2]
[368763639,1751351451000,-151.0,0.00019561,2]
[368763640,1751351451009,-151.0,0.00019561,2]
[368763641,1751351451019,-1300.61,0.00019569,2]
[368763642,1751351451029,-500.0,0.00019589,2]
[368763643,1751351451042,-500.0,0.00019589,2]
[368763644,1751351451052,-198.0,0.00019589,2]
[368763645,1751351451061,-151.0,0.00019589,2]
[368763646,1751351451070,-200.44264362,0.00019589,2]
[368763647,1751351451079,-621.0,0.00019616,2]
[368763648,1751351451090,-500.0,0.00019616,2]
[368763649,1751351451100,-245.0,0.00019616,2]
[368763650,1751351451110,-500.0,0.00019644,2]
[368763651,1751351451120,-500.0,0.00019671,2]
[368763652,1751351451130,-493.97,0.00019687,2]
[368763653,1751351451139,-460.0,0.00019688,2]
[368763654,1751351451149,-1344.77,0.00019688,2]
[368763655,1751351451158,-986.27,0.00019688,2]
[368763656,1751351451168,-321.18356867,0.00019688,2]
[368763657,1751351451178,-660.44,0.00019688,2]
[368763658,1751351451187,-460.0,0.00019688,2]
[368763659,1751351451197,-827.49,0.00019688,2]
[368763660,1751351451207,-783.63,0.00019688,2]
[368763661,1751351451217,-538.36,0.00019688,2]
[368763662,1751351451226,-460.0,0.00019688,2]
[368763663,1751351451235,-485.37,0.00019688,2]
[368763664,1751351451245,-720.98,0.00019688,2]
[368763665,1751351451254,-555.42219086,0.00019688,2]
[368763666,1751351451264,-429.46,0.00019689,2]
[368763667,1751351451273,-534.87,0.00019689,2]
[368763668,1751351451282,-460.0,0.00019689,2]
[368763669,1751351451292,-460.0,0.00019689,2]
[368763670,1751351451301,-852.87,0.00019689,2]
[368763671,1751351451311,-460.0,0.00019689,2]
[368763672,1751351451320,-460.0,0.00019689,2]
[368763673,1751351451329,-460.0,0.00019689,2]
[368763674,1751351451339,-1607.04,0.00019689,2]
[368763675,1751351451348,-460.0,0.00019689,2]
[368763676,1751351451358,-509.32,0.00019689,2]
[368763677,1751351451368,-460.0,0.00019689,2]
[368763678,1751351451378,-204.58548667,0.00019689,2]
[368763679,1751351451388,-1151.81,0.00019689,2]
[368763680,1751351451398,-718.25,0.0001969,2]
[368763681,1751351451407,-460.0,0.0001969,2]
[368763682,1751351451416,-460.0,0.0001969,2]
[368763683,1751351451426,-732.75,0.0001969,2]
[368763684,1751351451436,-460.0,0.0001969,2]
[368763685,1751351451446,-620.61,0.0001969,2]
[368763686,1751351451456,-1219.14,0.0001969,2]
[368763687,1751351451465,-460.0,0.0001969,2]
[368763688,1751351451475,-585.76,0.0001969,2]
[368763689,1751351451483,-1300.61,0.00019691,2]
[368763690,1751351451493,-1300.61,0.00019691,2]
[368763691,1751351451503,-1300.61,0.00019691,2]
[368763692,1751351451512,-1300.61,0.00019691,2]
[368763693,1751351451522,-1300.80754827,0.00019691,2]
[368763694,1751351451531,-460.0,0.00019692,2]
[368763695,1751351451539,-460.0,0.00019692,2]
[368763696,1751351451549,-460.0,0.00019692,2]
[368763697,1751351451558,-157.49944196,0.00019694,2]
[368763698,1751351451568,-500.0,0.00019698,2]
[368763699,1751351451578,-500.0,0.00019726,2]
[368763700,1751351451587,-500.0,0.00019753,2]
[368763701,1751351451596,-328.37451596,0.00019781,2]
[368763702,1751351451606,-151.0,0.000198,2]
[368763703,1751351451615,-236.61434184,0.000199,2]
[368763704,1751351451625,-493.97,0.00019961,2]
[368763705,1751351451634,-460.0,0.00019962,2]
[368763706,1751351451643,-1344.77,0.00019962,2]
[368763707,1751351451652,-986.27,0.00019962,2]
[368763708,1751351451662,-660.44,0.00019962,2]
[368763709,1751351451671,-460.0,0.00019962,2]
[368763710,1751351451681,-827.49,0.00019962,2]
[368763711,1751351451690,-783.63,0.00019962,2]
[368763712,1751351451700,-538.36,0.00019962,2]
[368763713,1751351451710,-460.0,0.00019962,2]
[368763714,1751351451720,-720.98,0.00019962,2]
[368763715,1751351451729,-460.0,0.00019963,2]
[368763716,1751351451739,-460.0,0.00019963,2]
[368763717,1751351451748,-852.87,0.00019963,2]
[368763718,1751351451757,-460.0,0.00019963,2]
[368763719,1751351451767,-460.0,0.00019963,2]
[368763720,1751351451777,-233.7,0.00019963,2]
[368763721,1751351451786,-1607.04,0.00019963,2]
[368763722,1751351451796,-460.0,0.00019963,2]
[368763723,1751351451875,-509.32,0.00019963,2]
[368763724,1751351451885,-460.0,0.00019963,2]
[368763725,1751351451898,-1151.81,0.00019963,2]
[368763726,1751351451912,-718.25,0.00019964,2]
[368763727,1751351451930,-171.62,0.00019964,2]
[368763728,1751351451944,-460.0,0.00019964,2]
[368763729,1751351451958,-732.75,0.00019964,2]
[368763730,1751351451971,-460.0,0.00019964,2]
[368763731,1751351451981,-620.61,0.00019964,2]
[368763732,1751351451991,-1219.14,0.00019964,2]
[368763733,1751351452000,-460.0,0.00019964,2]
[368763734,1751351452011,-585.76,0.00019964,2]
[368763735,1751351452021,-460.0,0.00019966,2]
[368763736,1751351452031,-460.0,0.00019966,2]
[368763737,1751351452044,-158.97564435,0.00019998,2]
[368763738,1751351452054,-169.28,0.0002,2]
[368763739,1751351452063,-11199.80403469,0.0002,2]
[368763740,1751351452072,-13646.57363882,0.0002,2]
[368763741,1751351452083,-1187.63158602,0.0002,2]
[368763742,1751351452092,-361.64427373,0.0002,2]
[368763743,1751351452101,-40000.0,0.0002,2]
[368763744,1751351452110,-2875.54065777,0.0002,2]
[368763745,1751351452121,-252.11453212,0.0002,30]
[368763746,1751351452131,-549.31594541,0.0002,2]
[368763747,1751351452140,-40929.84782435,0.0002,2]
[368763748,1751351452149,-243.73675996,0.00020016,2]
[368763749,1751351452159,-218.560344,0.00020187,2]
[368763750,1751351452168,-493.97,0.00020235,2]
[368763751,1751351452178,-460.0,0.00020236,2]
[368763752,1751351452188,-1344.77,0.00020236,2]
[368763753,1751351452198,-986.27,0.00020236,2]
[368763754,1751351452208,-660.44,0.00020236,2]
[368763755,1751351452217,-460.0,0.00020236,2]
[368763756,1751351452226,-827.49,0.00020236,2]
[368763757,1751351452236,-783.63,0.00020236,2]
[368763758,1751351452245,-538.36,0.00020236,2]
[368763759,1751351452254,-460.0,0.00020236,2]
[368763760,1751351452264,-720.98,0.00020236,2]
[368763761,1751351452272,-460.0,0.00020237,2]
[368763762,1751351452281,-460.0,0.00020237,2]
[368763763,1751351452290,-852.87,0.00020237,2]
[368763764,1751351452299,-460.0,0.00020237,2]
[368763765,1751351452308,-460.0,0.00020237,2]
[368763766,1751351452317,-1607.04,0.00020237,2]
[368763767,1751351452326,-460.0,0.00020237,2]
[368763768,1751351452335,-509.32,0.00020237,2]
[368763769,1751351452345,-460.0,0.00020237,2]
[368763770,1751351452355,-1151.81,0.00020237,2]
[368763771,1751351452364,-718.25,0.00020238,2]
[368763772,1751351452373,-460.0,0.00020238,2]
[368763773,1751351452382,-732.75,0.00020238,2]
[368763774,1751351452391,-460.0,0.00020238,2]
[368763775,1751351452400,-620.61,0.00020238,2]
[368763776,1751351452410,-1219.14,0.00020238,2]
[368763777,1751351452419,-460.0,0.00020238,2]
[368763778,1751351452428,-585.76,0.00020238,2]
[368763779,1751351452437,-460.0,0.0002024,2]
[368763780,1751351452447,-460.0,0.0002024,2]
[368763781,1751351452458,-493.97,0.00020509,2]
[368763782,1751351452467,-460.0,0.0002051,2]
[368763783,1751351452476,-1344.77,0.0002051,2]
[368763784,1751351452485,-986.27,0.0002051,2]
[368763785,1751351452495,-660.44,0.0002051,2]
[368763786,1751351452504,-460.0,0.0002051,2]
[368763787,1751351452514,-827.49,0.0002051,2]
[368763788,1751351452523,-783.63,0.0002051,2]
[368763789,1751351452533,-538.36,0.0002051,2]
[368763790,1751351452542,-203.49,0.0002051,2]
[368763791,1751351452551,-720.98,0.0002051,2]
[368763792,1751351452560,-460.0,0.00020511,2]
[368763793,1751351452570,-460.0,0.00020511,2]
[368763794,1751351452579,-852.87,0.00020511,2]
[368763795,1751351452588,-404.5432173,0.00020511,2]
[368763796,1751351452598,-460.0,0.00020511,2]
[368763797,1751351452607,-1607.04,0.00020511,2]
[368763798,1751351452616,-460.0,0.00020511,2]